[Event "IV Estrellas 2022"]
[Site "La Palma"]
[Date "2022.08.10"]
[Round "7.16"]
[White "Marin Dorta, Alejandro"]
[Black "Miranda Herrera, Miguel"]
[Result "1/2-1/2"]
[ECO "C41"]
[WhiteElo "1869"]
[BlackElo "1904"]
[Annotator "TA"]
[PlyCount "65"]
[EventDate "2022.08.06"]
[EventType "swiss"]
[EventCountry "ESP"]
[SourceTitle "playchess.com"]
[Source "ChessBase"]
[SourceQuality "1"]
[TimeControl "5400+30"]

{[%evp 9,65,12,45,16,17,17,40,35,35,27,64,33,77,96,68,70,90,80,115,117,308,315,317,330,316,114,109,116,100,17,60,47,250,89,126,167,142,126,424,411,376,-42,-35,-72,-12,-106,-85,-82,-82,-102,-87,-121,-110,-191,-69,-96,-27,-28]} 1. e4 {[%emt 0:00:03]} e5 {[%emt 0:00:06]} 2. Nf3 {[%emt 0:00:13]} d6 {[%emt 0:00:05]} 3. Nc3 {[%emt 0:00:25]} Nf6 {[%emt 0:00:11]} 4. Bc4 {[%emt 0:01:05]} Be7 {[%emt 0:00:07]} 5. h3 {[%emt 0:00:58]} h6 {[%emt 0:02:53]} 6. d3 {[%emt 0:01:52] C41: Philidor Defence.} c6 {[%emt 0:00:48]} 7. a4 {[%emt 0:02:37]} Nbd7 {[%emt 0:00:09]} 8. O-O {[%emt 0:00:16] White is slightly better.} Nf8 {[%emt 0:02:52]} 9. Be3 {[%emt 0:03:37]} g5 {[%emt 0:03:06]} 10. d4 {[%emt 0:03:09]} Qc7 {[%emt 0:00:06]} 11. dxe5 {[%emt 0:07:32]} dxe5 {[%emt 0:00:07] [#]} 12. Nxe5 $146 {[%emt 0:18:05]} ({Predecessor:} 12. Nh2 Ng6 13. Ne2 Nxe4 14. Ng3 Nd6 15. Bb3 Bd7 16. Qf3 Nh4 17. Qe2 Qc8 18. Nf3 Nxf3+ 19. Qxf3 {1-0 (46) Hemam,M-Nagib Tanyous,E (1472) Chess.com INT 2020}) 12... Qxe5 {[%emt 0:14:37]} 13. Bd4 {[%emt 0:01:07]} Qa5 {[%emt 0:01:02] aiming for ...Be6.} 14. e5 $1 {[%emt 0:20:05]} Nd5 (14... Nh5 $16 {keeps fighting.}) 15. Nxd5 $18 {[%emt 0:36:56][%mdl 64] Deflection} cxd5 {[%emt 0:01:13]} 16. Bb5+ {[%emt 0:00:00]} Kd8 {[%emt 0:02:12]} 17. Bc3 $2 {[%emt 0:00:00]} (17. e6 $18 {is the precise move to win.} f6 18. c4 (18. Bc3 Qb6 $16) 18... Nxe6 19. Bc3) 17... Qb6 $16 {[%emt 0:00:20]} 18. Qxd5+ {[%emt 0:00:00]} Kc7 {[%emt 1:09:36]} 19. Qxf7 {[%emt 0:02:00] The board is on fire. 0x0.00198b36c8e8dp-1022s more active pieces. The black rooks are badly placed.} (19. e6 $1 $16 f6 20. Be5+ fxe5 21. Qxe5+ Bd6 22. Qxh8 Bxe6 23. Qg7+ (23. Qxh6 Rc8 $16) 23... Kb8 24. Be2 (24. Qxh6 a6 $16)) 19... Rh7 {[%emt 0:00:30]} 20. Qc4+ {[%emt 0:00:00][%mdl 1024] White has compensation.} ({Don't play} 20. Qd5 Be6 21. Qe4 Rd8 $11) 20... Qc5 $2 {[%emt 0:00:30]} (20... Kb8 $1 $14) 21. Qe4 $2 {[%emt 0:01:00]} (21. Qd3 $1 $18) 21... a6 {[%emt 0:00:00]} 22. Bd4 {[%emt 0:00:00]} Bf5 {[%emt 0:00:00]} 23. Qe3 {[%emt 0:00:00]} ({Weaker is} 23. Bxc5 Bxe4 24. Bd6+ Bxd6 25. exd6+ Kxd6 26. Rad1+ Kc7 $17) ({Stronger than} 23. Qxf5 Qxd4 24. Bd3 Rd8 $11) 23... Qd5 {[%emt 0:00:00][%mdl 8192]} (23... Qb4 $16 24. Bd3 Rf7) 24. Qc3+ $18 {[%emt 0:00:00]} Kb8 {[%emt 0:00:00] [#]} 25. Bc4 {[%emt 0:00:00]} (25. Bb6 $1 $18 {[%csl Gb6][%cal Rc3c7]} Ne6 (25... Bd8 26. Bc4) 26. Rad1) 25... Qc6 $36 {[%emt 0:00:00][%mdl 2048] Black has some pressure.} 26. Rfd1 {[%emt 0:00:00]} Be6 {[%emt 0:00:00]} (26... Ne6 $17) 27. Bxe6 {[%emt 0:00:00]} (27. Bd3 $11 {keeps the balance.}) 27... Qxc3 {[%emt 0:00:00]} 28. Bxc3 {[%emt 0:00:00]} Nxe6 {[%emt 0:00:00]} 29. Rd7 {[%emt 0:00:00] Hoping for Bb4.} Nc5 {[%emt 0:00:00]} 30. Rd5 {[%emt 0:00:03]} Kc7 {[%emt 0:00:00]} 31. Rad1 {[%emt 0:02:02]} (31. b4 $17 Ne6 32. Rad1) 31... Bf8 {[%emt 0:00:00]} (31... Nxa4 $19 32. R1d3 Kc6) 32. R1d4 {[%emt 0:01:30]} Rd7 {[%emt 0:00:00]} ({Better is} 32... Kc6 $17 {[%cal Oc5a4] ...Nxa4! is the strong threat.} 33. Bb4 Re8 34. Rd6+ Bxd6 35. Rxd6+ Kc7 36. Bxc5 Rxe5) 33. Rxd7+ {[%emt 0:00:00] Weighted Error Value: White=0.58/Black=0.59} 1/2-1/2

[Event "IV Estrellas 2022"]
[Site "La Palma"]
[Date "2022.08.10"]
[Round "7.17"]
[White "Marrero Rodriguez, Jorge"]
[Black "Pleschke, Julius Jonas"]
[Result "1/2-1/2"]
[ECO "B44"]
[WhiteElo "1941"]
[BlackElo "1685"]
[Annotator "NA"]
[PlyCount "41"]
[EventDate "2022.08.06"]
[EventType "swiss"]
[EventCountry "ESP"]
[SourceTitle "playchess.com"]
[Source "ChessBase"]
[SourceQuality "1"]
[TimeControl "5400+30"]

1. e4 {[%emt 0:00:20]} c5 {[%emt 0:00:12]} 2. Nf3 {[%emt 0:00:10]} e6 {[%emt 0:00:08]} 3. d4 {[%emt 0:02:22]} cxd4 {[%emt 0:00:13]} 4. Nxd4 {[%emt 0:00:39]} Nc6 {[%emt 0:00:08]} 5. Bf4 {[%emt 0:00:06]} d6 {[%emt 0:20:23]} 6. Nxc6 {[%emt 0:00:09]} bxc6 {[%emt 0:00:18]} 7. c4 {[%emt 0:00:06]} e5 {[%emt 0:01:47]} 8. Be3 {[%emt 0:00:31]} Nf6 {[%emt 0:00:22]} 9. Nc3 {[%emt 0:01:43]} Be7 {[%emt 0:01:03]} 10. Be2 {[%emt 0:00:51]} O-O {[%emt 0:00:44]} 11. O-O {[%emt 0:02:25]} Be6 {[%emt 0:04:11]} 12. Qa4 {[%emt 0:04:37]} Qc7 {[%emt 0:12:15]} 13. b4 {[%emt 0:05:23]} d5 {[%emt 0:06:52]} 14. Bg5 {[%emt 0:13:42]} d4 {[%emt 0:03:09]} 15. Bxf6 {[%emt 0:00:15]} Bxf6 {[%emt 0:01:30]} 16. Nd1 {[%emt 0:00:13]} g6 {[%emt 0:03:35]} 17. Nb2 {[%emt 0:00:38]} Bg5 {[%emt 0:03:20]} 18. Qc2 {[%emt 0:01:08]} f5 {[%emt 0:03:15]} 19. Nd3 {[%emt 0:01:46]} Be7 {[%emt 0:05:24]} 20. Bf3 {[%emt 0:01:27]} f4 {[%emt 0:01:48]} 21. Rfc1 {[%emt 0:02:04]} 1/2-1/2

[Event "IV Estrellas 2022"]
[Site "La Palma"]
[Date "2022.08.10"]
[Round "7.18"]
[White "Anson Casaos, Alejandro"]
[Black "Arnaiz Yanes, Miguel Angel"]
[Result "1/2-1/2"]
[ECO "D40"]
[WhiteElo "1796"]
[BlackElo "1923"]
[Annotator "NA RC"]
[PlyCount "60"]
[EventDate "2022.08.06"]
[EventType "swiss"]
[EventCountry "ESP"]
[SourceTitle "playchess.com"]
[Source "ChessBase"]
[SourceQuality "1"]
[TimeControl "5400+30"]

1. c4 {[%emt 0:00:08]} c5 {[%emt 0:00:34]} 2. Nf3 {[%emt 0:00:23]} Nf6 {[%emt 0:00:08]} 3. Nc3 {[%emt 0:00:25]} Nc6 {[%emt 0:00:09]} 4. e3 {[%emt 0:01:19]} e6 {[%emt 0:01:33]} 5. d4 {[%emt 0:01:22]} cxd4 {[%emt 0:00:40]} 6. exd4 {[%emt 0:00:19]} d5 {[%emt 0:00:34]} 7. Bd3 {[%emt 0:00:26]} Be7 {[%emt 0:01:28]} 8. O-O {[%emt 0:00:19]} O-O {[%emt 0:00:30]} 9. a3 {[%emt 0:02:46]} dxc4 {[%emt 0:00:20]} 10. Bxc4 {[%emt 0:00:10]} a6 {[%emt 0:00:43]} 11. Be3 {[%emt 0:01:42]} b5 {[%emt 0:01:54]} 12. Ba2 {[%emt 0:01:02]} Bb7 {[%emt 0:01:37]} 13. Rc1 {[%emt 0:01:56]} Rc8 {[%emt 0:01:01]} 14. Qe2 {[%emt 0:01:07]} b4 {[%emt 0:07:13]} 15. axb4 {[%emt 0:01:14]} Nxb4 {[%emt 0:02:23]} 16. Bb1 Qa5 {[%emt 1:17:43]} 17. Ne5 {[%emt 1:24:22]} Nbd5 {[%emt 0:00:00]} 18. Ne4 {[%emt 0:00:00]} Nxe3 {[%emt 0:00:00]} 19. Qxe3 {[%emt 0:00:00]} Bxe4 {[%emt 0:00:00]} 20. Bxe4 {[%emt 0:00:00]} Nxe4 {[%emt 0:00:00]} 21. Qxe4 {[%emt 0:00:00]} Rxc1 {[%emt 0:00:00]} 22. Rxc1 {[%emt 0:00:00]} Qd2 {[%emt 0:00:00]} 23. Rb1 {[%emt 0:00:00]} Bd6 {[%emt 0:00:00]} 24. g3 {[%emt 0:00:00]} Rc8 {[%emt 0:00:00]} 25. Qb7 {[%emt 0:00:00]} Rf8 {[%emt 0:00:00]} 26. Nf3 {[%emt 0:00:00]} Qd3 {[%emt 0:00:00]} 27. Ra1 {[%emt 0:00:00]} Qb5 {[%emt 0:00:00]} 28. Qxa6 {[%emt 0:05:30]} Qd3 {[%emt 0:06:00]} 29. Qb7 {[%emt 0:00:30]} Rb8 {[%emt 0:00:30]} 30. Qa6 {[%emt 0:00:30]} Qb5 {[%emt 0:00:30]} 1/2-1/2

[Event "IV Estrellas 2022"]
[Site "La Palma"]
[Date "2022.08.11"]
[Round "8.1"]
[White "Martinez Duany, Lelys Stanley"]
[Black "Baskin, Robert"]
[Result "1/2-1/2"]
[ECO "A34"]
[WhiteElo "2497"]
[BlackElo "2408"]
[Annotator "TA"]
[PlyCount "78"]
[EventDate "2022.08.06"]
[EventType "swiss"]
[EventCountry "ESP"]
[SourceTitle "playchess.com"]
[Source "ChessBase"]
[SourceQuality "1"]
[TimeControl "5400+30"]

{[%evp 11,78,27,33,24,47,2,19,0,0,0,0,-29,0,0,-1,-4,0,0,0,0,0,-45,0,-6,0,0,44,46,29,41,54,7,7,7,7,5,4,2,10,0,0,0,0,0,0,0,0,-9,0,0,0,0,0,0,0,0,0,0,0,0,0,0,0,0,0,0,0,0,0]} 1. Nf3 {[%emt 0:00:12]} Nf6 {[%emt 0:00:20]} 2. c4 {[%emt 0:00:21]} c5 {[%emt 0:00:33]} 3. Nc3 {[%emt 0:00:43]} d5 {[%emt 0:00:32]} 4. cxd5 {[%emt 0:00:28]} Nxd5 {[%emt 0:00:04]} 5. g3 {[%emt 0:00:19]} Nc6 {[%emt 0:00:31]} 6. Bg2 {[%emt 0:00:16]} g6 {[%emt 0:00:22]} 7. h4 {[%emt 0:03:26] A34: Symmetrical English: 2 Nc3, lines with ...d5.} Bg7 {[%emt 0:05:21]} 8. h5 $1 {[%emt 0:00:13]} Bf5 {[%emt 0:02:05][%cal Bc8f5,Bf5e6,Be6d5][%mdl 32]} 9. Nxd5 {[%emt 0:06:01]} Qxd5 {[%emt 0:00:51]} 10. d3 {[%emt 0:00:06] [#] Black must now prevent e4.} Qd7 {[%emt 0:03:46] [#]} 11. Be3 $146 {[%emt 0:10:27]} ({Predecessor:} 11. Qa4 Nb4 12. Qxd7+ Bxd7 13. Kf1 Be6 14. Ng5 Bd5 15. Bd2 Bxg2+ 16. Kxg2 O-O 17. Bc3 {1-0 (68) Gupta,A (2625)-Abdumalik,Z (2379) Reykjavik 2015}) 11... b6 {[%emt 0:07:47]} 12. Qd2 {[%emt 0:04:23]} Rd8 {[%emt 0:08:46]} 13. Rc1 {[%emt 0:01:04]} Be6 {[%emt 0:03:29]} 14. Bh6 {[%emt 0:13:41]} Bf6 {[%emt 0:05:19]} 15. b3 {[%emt 0:01:19]} Bd5 {[%emt 0:02:21]} 16. Bg5 {[%emt 0:00:44]} Qe6 {[%emt 0:17:08]} 17. Bxf6 {[%emt 0:04:00]} Qxf6 {[%emt 0:00:38]} 18. Kf1 {[%emt 0:00:26]} Nd4 {[%emt 0:02:47]} 19. Nxd4 {[%emt 0:00:20]} Bxg2+ {[%emt 0:00:27]} 20. Kxg2 {[%emt 0:00:07]} Qxd4 {[%emt 0:01:23]} 21. hxg6 {[%emt 0:03:06]} (21. f3 $14 {feels stronger.}) 21... hxg6 $11 {[%emt 0:00:24] The position is equal.} 22. Rxh8+ {[%emt 0:01:08]} Qxh8 $14 {[%emt 0:00:04][%mdl 4096] Endgame KQR-KQR} 23. Qg5 {[%emt 0:01:47]} Qd4 {[%emt 0:01:24]} 24. Rh1 {[%emt 0:00:47]} Rd5 {[%emt 0:04:01]} 25. Qh6 {[%emt 0:01:18]} Rf5 {[%emt 0:04:50]} 26. Qh8+ {[%emt 0:00:11]} Kd7 {[%emt 0:00:46]} 27. Qxd4+ {[%emt 0:00:21]} (27. f4 {keeps more tension.} Qe3 28. Qa8 Qxe2+ 29. Kg1) 27... cxd4 $11 {[%emt 0:00:04] KR-KR} 28. Rh4 {[%emt 0:01:12]} Rd5 {[%emt 0:00:06]} 29. Kf3 {[%emt 0:00:26]} e5 {[%emt 0:00:34]} 30. Rh8 {[%emt 0:01:21]} Ra5 {[%emt 0:02:46]} 31. a4 {[%emt 0:00:40]} b5 {[%emt 0:00:20]} 32. axb5 {[%emt 0:00:16]} Rxb5 {[%emt 0:00:04]} 33. Ra8 {[%emt 0:00:09]} Rxb3 {[%emt 0:03:52]} 34. Rxa7+ {[%emt 0:00:07]} Ke6 {[%emt 0:00:01]} 35. g4 {[%emt 0:00:36]} Rb2 {[%emt 0:01:14]} 36. Ra6+ {[%emt 0:00:31]} Ke7 {[%emt 0:00:15]} 37. g5 {[%emt 0:00:15]} Rc2 {[%emt 0:01:28]} 38. Ra7+ {[%emt 0:05:48]} Ke6 {[%emt 0:00:20]} 39. Ra6+ {[%emt 0:00:34]} Ke7 {[%emt 0:00:05] Weighted Error Value: White=0.05 (flawless) /Black=0.06 (flawless)} 1/2-1/2

[Event "IV Estrellas 2022"]
[Site "La Palma"]
[Date "2022.08.11"]
[Round "8.2"]
[White "Pap, Misa"]
[Black "Herrera Reyes, Jose Antonio"]
[Result "1-0"]
[ECO "B40"]
[WhiteElo "2375"]
[BlackElo "2345"]
[Annotator "TA"]
[PlyCount "93"]
[EventDate "2022.08.06"]
[EventType "swiss"]
[EventCountry "ESP"]
[SourceTitle "playchess.com"]
[Source "ChessBase"]
[SourceQuality "1"]
[TimeControl "5400+30"]

{[%evp 9,93,55,46,54,46,49,51,56,59,58,77,83,127,129,95,103,72,89,126,50,168,72,150,153,160,96,102,96,104,96,95,104,171,175,578,568,574,401,372,389,397,384,393,379,1040,536,493,468,464,464,442,436,425,432,437,434,418,416,1176,1167,1131,1010,998,891,10287,10287,6319,6336,29971,29970,29980,29981,29981,29969,8503,7772,29966,29963,29984,29985,29986,29985,29986,29987,29987,29988]} 1. e4 {[%emt 0:05:21]} c5 {[%emt 0:00:14]} 2. Nf3 {[%emt 0:00:21]} e6 {[%emt 0:00:05]} 3. g3 {[%emt 0:00:15]} b6 {[%emt 0:01:06]} 4. Bg2 {[%emt 0:00:04]} Bb7 {[%emt 0:00:04]} 5. d4 {[%emt 0:00:03]} cxd4 {[%emt 0:04:03]} 6. Nxd4 {[%emt 0:00:06] B40: Sicilian: 2...e6, Unusual lines.} a6 {[%emt 0:00:17]} 7. O-O {[%emt 0:00:13]} Qc7 {[%emt 0:00:04]} 8. c4 {[%emt 0:02:41] [#] White is slightly better.} h5 $146 {[%emt 0:04:19]} ({Predecessor:} 8... Nf6 9. Qe2 d6 10. b3 Be7 11. Bb2 O-O 12. Nc3 Nc6 13. Rfd1 Rfe8 14. Rac1 Nxd4 15. Rxd4 {0-1 (41) Spitzl,V (2277)-Trussevich,S (2287) Germany 2018}) 9. Nc3 {[%emt 0:05:29]} h4 {[%emt 0:06:06]} 10. Re1 {[%emt 0:03:15][%cal Oc3d5] Nd5! is the strong threat.} hxg3 {[%emt 0:03:08]} 11. hxg3 {[%emt 0:00:06][%cal Oc3d5]} Be7 {[%emt 0:15:57]} 12. Be3 {[%emt 0:08:04]} d6 {[%emt 0:08:09]} 13. Rc1 {[%emt 0:00:58][%cal Oc3d5]} Nf6 {[%emt 0:00:07] [#] Prevents Nd5.} 14. f4 {[%emt 0:09:00]} (14. Nd5 $1 $16 {[%mdl 512]} exd5 15. cxd5) 14... g6 {[%emt 0:13:02]} (14... Nbd7 $14) 15. Bf2 {[%emt 0:10:38]} (15. f5 $1 $18 {[%cal Rf5e6]} gxf5 16. Nd5 exd5 17. cxd5) 15... Nbd7 {[%emt 0:09:57]} ({Black should play} 15... e5) 16. Nd5 $1 $36 {[%emt 0:05:08][%mdl 2048] White is in control.} Qd8 {[%emt 0:00:21]} (16... exd5 17. cxd5 Nc5 18. b4 $14) 17. e5 {[%emt 0:11:57] 0x0.0005ecfb3c1bdp-1022s more active pieces.} (17. Nxe7 $142 Qxe7 18. e5 Bxg2 19. Kxg2 (19. exf6 $2 Bb7 $19) 19... dxe5 20. fxe5) 17... dxe5 {[%emt 0:08:27] [#]} (17... Nxd5 $2 18. cxd5 dxe5 19. Nc6 Bxc6 20. dxc6 $18) 18. Nxe6 {[%emt 0:03:06][%mdl 512]} fxe6 {[%emt 0:05:41]} 19. Nxf6+ {[%emt 0:01:09][%mdl 64] Discovered Attack} Nxf6 {[%emt 0:00:02]} 20. Bxb7 {[%emt 0:00:20]} Rb8 {[%emt 0:07:24] [#]} (20... Qxd1 $16 21. Rcxd1 (21. Rexd1 Rb8 $14) 21... Rb8) 21. Qf3 $1 $18 {[%emt 0:09:31]} ({Don't play} 21. Bxa6 $6 Qc7 22. Qf3 e4 23. Rxe4 Nxe4 24. Qxe4 Kf7 $14) 21... Bc5 $2 {[%emt 0:09:49]} (21... e4 22. Bxe4 Kf7) 22. Bc6+ {[%emt 0:00:28]} Ke7 {[%emt 0:00:10]} 23. Rcd1 {[%emt 0:09:18] Inhibits Qd2.} e4 {[%emt 0:02:05]} 24. Bxc5+ {[%emt 0:02:11]} ({Less strong is} 24. Rxd8 exf3 25. Rxb8 Rxb8 26. Bxf3 Nd7 27. Bxc5+ Nxc5 $16) 24... bxc5 {[%emt 0:00:01]} 25. Bxe4 {[%emt 0:00:18] Dancing on a razor blade.} ({Weaker is} 25. Rxd8 exf3 26. Rxh8 Rxh8 $16) 25... Qb6 {[%emt 0:00:41]} 26. Bxg6 {[%emt 0:06:22] Hoping for f5.} Qxb2 $2 {[%emt 0:01:34] [#]} (26... Kf8 27. b3 Kg7) 27. Rxe6+ $3 {[%emt 0:00:18][%mdl 512]} Kf8 {[%emt 0:00:27] aiming for ...Qh2+.} 28. Re2 {[%emt 0:00:19] Against Qh2+} Qb7 {[%emt 0:00:05]} 29. Qxb7 {[%emt 0:01:53]} Rxb7 {[%emt 0:00:01]} 30. Rd8+ {[%emt 0:01:04]} Kg7 {[%emt 0:00:00]} 31. Rxh8 {[%emt 0:00:10]} Kxh8 {[%emt 0:00:01][%mdl 4096] Endgame KRB-KRN} 32. Bf5 {[%emt 0:00:38]} Rb4 {[%emt 0:01:26]} 33. Be6 {[%emt 0:00:23]} Nh5 {[%emt 0:00:42]} (33... Kg7 $142 34. g4 Rb1+ 35. Kf2 a5) 34. Rh2 {[%emt 0:01:19]} Rb1+ {[%emt 0:00:01]} 35. Kg2 {[%emt 0:00:08]} Rb2+ {[%emt 0:00:01] [#]} 36. Kh3 $1 {[%emt 0:00:06]} Rxh2+ {[%emt 0:01:00]} 37. Kxh2 {[%emt 0:00:05] Kh3 would kill now. KB-KN} Kg7 {[%emt 0:00:05]} 38. Kg2 {[%emt 0:00:34]} a5 {[%emt 0:00:47]} 39. Kf3 {[%emt 0:00:07]} Nf6 {[%emt 0:01:03]} 40. g4 {[%emt 0:00:11][%cal Bg3g4,Bg4g5][%mdl 32]} Ne8 {[%emt 0:00:01]} 41. Ke4 {[%emt 0:00:37]} Kf6 {[%emt 0:00:01]} 42. Bd7 {[%emt 0:00:25]} Nc7 {[%emt 0:00:22]} 43. g5+ {[%emt 0:00:09] White mates.} Ke7 {[%emt 0:00:01]} 44. Bc8 {[%emt 0:00:39]} a4 {[%emt 0:00:30]} 45. a3 {[%emt 0:00:10]} Na8 {[%emt 0:00:12]} 46. f5 {[%emt 0:00:34]} Nb6 {[%emt 0:00:01]} 47. Be6 {[%emt 0:00:06] Weighted Error Value: White=0.27 (precise) /Black=0.63} 1-0

[Event "IV Estrellas 2022"]
[Site "La Palma"]
[Date "2022.08.11"]
[Round "8.3"]
[White "Geske, Julian"]
[Black "Kurajica, Bojan"]
[Result "1/2-1/2"]
[ECO "B43"]
[WhiteElo "2386"]
[BlackElo "2525"]
[Annotator "TA"]
[PlyCount "66"]
[EventDate "2022.08.06"]
[EventType "swiss"]
[EventCountry "ESP"]
[SourceTitle "playchess.com"]
[Source "ChessBase"]
[SourceQuality "1"]
[TimeControl "5400+30"]

{[%evp 10,66,36,9,55,26,35,16,0,3,131,121,143,131,147,166,159,146,156,153,118,98,249,245,237,239,244,248,256,225,694,705,655,671,640,407,428,420,443,439,466,390,718,375,373,372,443,379,383,387,373,330,358,340,307,37,37,0,703]} 1. e4 {[%emt 0:00:03]} c5 {[%emt 0:00:07]} 2. Nf3 {[%emt 0:00:04]} e6 {[%emt 0:00:18]} 3. Nc3 {[%emt 0:00:08]} a6 {[%emt 0:01:01]} 4. d4 {[%emt 0:00:05]} cxd4 {[%emt 0:02:12]} 5. Nxd4 {[%emt 0:00:04]} Qc7 {[%emt 0:00:11]} 6. g3 {[%emt 0:00:07]} h5 {[%emt 0:03:49] B43: Sicilian: Kan Variation: 5 Nc3.} (6... Bb4 $11 7. Nde2 Be7) 7. Bg2 {[%emt 0:04:07]} h4 {[%emt 0:02:24]} 8. O-O {[%emt 0:02:11][%cal Oe4e5]} hxg3 {[%emt 0:00:09]} 9. hxg3 {[%emt 0:00:09][%cal Oe4e5] [#]} Bc5 $146 {[%emt 0:07:18]} (9... d6 $11 {keeps the balance.}) ({Predecessor:} 9... Nc6 10. Nxc6 dxc6 11. Be3 e5 12. Na4 b5 13. Nb6 Rb8 14. Nxc8 Rxc8 15. a4 b4 {1-0 (27) Buhmann,R (2584)-Castellanos Rodriguez,R (2501) Katowice 2017}) 10. Bf4 $16 {[%emt 0:05:22]} d6 {[%emt 0:09:28] [#]} 11. Nb3 $1 {[%emt 0:04:30][%cal Bd4b3,Bb3c5,Bc5b7][%mdl 32]} e5 {[%emt 0:00:48]} 12. Nd5 {[%emt 0:05:34]} Qd8 {[%emt 0:01:08] [#]} 13. Bxe5 {[%emt 0:04:01][%mdl 512]} Bxf2+ {[%emt 0:08:33]} (13... dxe5 14. Nxc5) 14. Rxf2 {[%emt 0:00:24]} dxe5 {[%emt 0:00:09]} 15. Qf3 {[%emt 0:06:23][%csl Gf2][%cal Rf3f7] Inhibits Nf6.} Be6 {[%emt 0:04:27]} (15... Nf6 $16 {keeps fighting.}) 16. Nc5 $40 {[%emt 0:03:51][%mdl 128] Black is in trouble.} Bxd5 {[%emt 0:11:53]} 17. exd5 {[%emt 0:01:13][%csl Gf2][%cal Rf3f7,Be4d5,Bd5d6][%mdl 32]} Nf6 {[%emt 0:01:10]} 18. Nxb7 {[%emt 0:07:50]} Qb6 {[%emt 0:02:14]} 19. Qb3 {[%emt 0:02:13] Really sharp!} Qa7 {[%emt 0:03:13]} (19... Nbd7 20. Qxb6 Nxb6) 20. Nd6+ {[%emt 0:10:38]} Kf8 {[%emt 0:00:47]} 21. Nc8 {[%emt 0:06:52] Active counter play!} Qc5 {[%emt 0:10:24] [#]} 22. d6 $1 {[%emt 0:01:40]} Qxc8 {[%emt 0:17:24]} (22... Rh2 23. Qb7) 23. Bxa8 {[%emt 0:00:52]} Nbd7 {[%emt 0:00:31]} 24. Qb7 {[%emt 0:03:43]} ({Less strong is} 24. Bd5 Qc5 $18) 24... Qe8 {[%emt 0:00:08]} 25. Re1 {[%emt 0:08:38]} Ng4 $2 {[%emt 0:01:01]} (25... a5 26. Qa6 Ng4) 26. Rf3 {[%emt 0:01:04] Black must now prevent Rc3.} g6 {[%emt 0:01:28]} 27. Qa7 {[%emt 0:05:37] Strongly threatening Bc6.} Qe6 {[%emt 0:03:34]} 28. Bc6 {[%emt 0:00:44]} Ngf6 {[%emt 0:01:11]} 29. Bxd7 {[%emt 0:02:32]} Nxd7 {[%emt 0:00:09]} 30. Ref1 {[%emt 0:06:07]} f6 {[%emt 0:00:43]} 31. Rc3 {[%emt 0:00:28] aiming for Rc8+.} Kg7 {[%emt 0:01:50]} 32. Rc7 $2 {[%emt 0:01:13]} (32. Re1 $18) 32... Rh1+ $1 $14 {[%emt 0:00:32][%mdl 64] Decoy} 33. Kxh1 $4 {[%emt 0:00:12][%mdl 8192]} (33. Kf2 $14 Qf5+ 34. Ke3 Rxf1 35. Rxd7+ Kh6 36. Kd2 Rf2+ 37. Ke1 Rf1+ 38. Kd2 Rf2+ 39. Ke1 Rf1+ 40. Kd2) 33... Qh3+ {[%emt 0:00:06][%mdl 32768] Weighted Error Value: White=0.52/Black=0.37. An unexpected result.} 1/2-1/2